[Event "82nd Tata Steel Challengers 2020"]
[Site "Wijk aan Zee"]
[Date "2020.01.11"]
[Round "1.3"]
[White "Smeets, Jan"]
[Black "Van Foreest, Lucas"]
[Result "1/2-1/2"]
[ECO "C45"]
[WhiteElo "2585"]
[BlackElo "2523"]
[Annotator "ChessBase"]
[PlyCount "103"]
[EventDate "2020.01.11"]
[EventType "tourn"]
[EventCountry "NED"]
[SourceTitle "playchess.com"]
[Source "ChessBase"]
[SourceQuality "1"]
[TimeControl "40/6000+30:20/3000+30:900+30"]

1. e4 {[%emt 0:00:00]} e5 {[%emt 0:00:00]} 2. Nf3 {[%emt 0:00:00]} Nc6 {[%emt 0:00:00]} 3. d4 {[%emt 0:00:00]} exd4 {[%emt 0:00:00]} 4. Nxd4 {[%emt 0:00:00]} Nf6 {[%emt 0:00:03]} 5. Nxc6 {[%emt 0:00:50]} bxc6 {[%emt 0:00:06]} 6. Bd3 {[%emt 0:00:06]} d5 {[%emt 0:00:38]} 7. exd5 {[%emt 0:00:30]} cxd5 {[%emt 0:00:06]} 8. O-O {[%emt 0:00:24]} Be7 {[%emt 0:00:17]} 9. c4 {[%emt 0:01:05]} d4 {[%emt 0:00:18]} 10. Bg5 {[%emt 0:00:55]} O-O {[%emt 0:00:19]} 11. Qc2 {[%emt 0:01:41]} h6 {[%emt 0:03:12]} 12. Bxf6 {[%emt 0:01:11]} Bxf6 {[%emt 0:00:37]} 13. b4 {[%emt 0:00:32]} Be7 {[%emt 0:25:53]} 14. a3 {[%emt 0:20:52]} c5 {[%emt 0:16:44]} 15. b5 {[%emt 0:02:08]} Bb7 {[%emt 0:08:55]} 16. Nd2 {[%emt 0:05:21]} Bd6 {[%emt 0:00:06]} 17. Rfe1 {[%emt 0:31:42]} f5 {[%emt 0:01:23]} 18. Re6 {[%emt 0:18:21]} Bc8 {[%emt 0:12:40]} 19. Re2 {[%emt 0:06:18]} Bb7 {[%emt 0:10:27]} 20. Bxf5 {[%emt 0:03:56]} Qf6 {[%emt 0:15:52]} 21. Bh7+ {[%emt 0:11:18]} Kh8 {[%emt 0:00:06]} 22. Qd3 {[%emt 0:00:06]} g6 {[%emt 0:06:08]} 23. Qxg6 {[%emt 0:01:59]} Bxg2 {[%emt 0:01:18]} 24. Qxf6+ {[%emt 0:01:54]} Rxf6 {[%emt 0:00:02]} 25. Kxg2 {[%emt 0:00:37]} Kxh7 {[%emt 0:00:02]} 26. Ne4 {[%emt 0:00:11]} Rg6+ {[%emt 0:00:12]} 27. Ng3 {[%emt 0:00:26]} a6 {[%emt 0:00:03]} 28. Rb1 {[%emt 0:01:04]} axb5 {[%emt 0:00:16]} 29. Rxb5 {[%emt 0:00:02]} d3 {[%emt 0:02:57]} 30. Rd2 {[%emt 0:00:37]} Rxa3 {[%emt 0:00:02]} 31. Kf3 {[%emt 0:00:38]} Rf6+ {[%emt 0:00:26]} 32. Kg2 {[%emt 0:00:40]} Re6 {[%emt 0:02:26]} 33. Kf3 {[%emt 0:00:29]} Rf6+ {[%emt 0:00:01]} 34. Kg2 {[%emt 0:00:01]} Bf4 {[%emt 0:03:52]} 35. Rd1 {[%emt 0:00:01]} d2 {[%emt 0:00:19]} 36. Ne2 {[%emt 0:00:21]} Bg5 {[%emt 0:00:02]} 37. f4 {[%emt 0:01:29]} Bxf4 {[%emt 0:00:03]} 38. Nxf4 {[%emt 0:00:04]} Rxf4 {[%emt 0:00:02]} 39. Rxd2 {[%emt 0:01:04]} Rxc4 {[%emt 0:00:51]} 40. Rb6 {[%emt 0:00:00]} Rg4+ {[%emt 0:00:00]} 41. Kf2 {[%emt 0:08:51]} Ra7 {[%emt 0:04:09]} 42. Rc6 {[%emt 0:01:29]} Rf7+ {[%emt 0:02:06]} 43. Ke3 {[%emt 0:01:59]} Rg5 {[%emt 0:00:20]} 44. Ra2 {[%emt 0:08:14]} Re5+ {[%emt 0:00:57]} 45. Kd3 {[%emt 0:00:28]} Rf3+ {[%emt 0:00:14]} 46. Kc4 {[%emt 0:00:17]} Rf4+ {[%emt 0:00:08]} 47. Kc3 {[%emt 0:02:54]} Re3+ {[%emt 0:01:34]} 48. Kd2 {[%emt 0:00:10]} Re7 {[%emt 0:00:21]} 49. Kc3 {[%emt 0:11:56]} Rf5 {[%emt 0:00:04]} 50. Ra5 {[%emt 0:01:07]} Rh5 {[%emt 0:00:19]} 51. Raxc5 {[%emt 0:02:24]} Rxh2 {[%emt 0:00:17]} 52. Rc7 {[%emt 0:00:23]} 1/2-1/2

[Event "82nd Tata Steel Challengers 2020"]
[Site "Wijk aan Zee"]
[Date "2020.01.11"]
[Round "1.5"]
[White "L'Ami, Erwin"]
[Black "Smirnov, Anton"]
[Result "1-0"]
[ECO "D11"]
[WhiteElo "2606"]
[BlackElo "2604"]
[Annotator "ChessBase"]
[PlyCount "93"]
[EventDate "2020.01.11"]
[EventType "tourn"]
[EventCountry "NED"]
[SourceTitle "playchess.com"]
[Source "ChessBase"]
[SourceQuality "1"]
[TimeControl "40/6000+30:20/3000+30:900+30"]

1. d4 {[%emt 0:00:00]} d5 {[%emt 0:00:00]} 2. c4 {[%emt 0:00:00]} c6 {[%emt 0:00:06]} 3. Nf3 {[%emt 0:00:00]} Nf6 {[%emt 0:00:05]} 4. e3 {[%emt 0:00:50]} Bg4 {[%emt 0:00:14]} 5. Qb3 {[%emt 0:01:11]} Qb6 {[%emt 0:03:01]} 6. Ne5 {[%emt 0:00:52]} Bf5 {[%emt 0:01:35]} 7. cxd5 {[%emt 0:00:18]} Qxb3 {[%emt 0:03:54]} 8. axb3 {[%emt 0:00:39]} Nxd5 {[%emt 0:00:08]} 9. Bd3 {[%emt 0:00:22]} Bxd3 {[%emt 0:01:58]} 10. Nxd3 {[%emt 0:00:21]} Na6 {[%emt 0:06:51]} 11. Bd2 {[%emt 0:01:26]} e6 {[%emt 0:00:36]} 12. Ke2 {[%emt 0:00:17]} Be7 {[%emt 0:06:51]} 13. Na3 {[%emt 0:06:40]} O-O {[%emt 0:09:52]} 14. Nc4 {[%emt 0:03:23]} c5 {[%emt 0:11:22]} 15. Rxa6 {[%emt 0:01:45]} bxa6 {[%emt 0:00:09]} 16. dxc5 {[%emt 0:00:12]} Rfc8 {[%emt 0:05:06]} 17. b4 {[%emt 0:01:59]} f6 {[%emt 0:02:19]} 18. e4 {[%emt 0:13:00]} Nc7 {[%emt 0:00:13]} 19. Bc3 {[%emt 0:05:27]} Nb5 {[%emt 0:03:44]} 20. Ra1 {[%emt 0:04:17]} Rc6 {[%emt 0:01:32]} 21. e5 {[%emt 0:03:11]} Bd8 {[%emt 0:06:24]} 22. Nd6 {[%emt 0:06:54]} Rb8 {[%emt 0:02:13]} 23. f4 {[%emt 0:03:13]} h5 {[%emt 0:07:37]} 24. g3 {[%emt 0:03:31]} Nc7 {[%emt 0:09:22]} 25. Ke3 {[%emt 0:08:40]} f5 {[%emt 0:02:52]} 26. Bd2 {[%emt 0:08:11]} Kf8 {[%emt 0:04:07]} 27. Kd4 {[%emt 0:12:59]} g6 {[%emt 0:02:21]} 28. Ne1 {[%emt 0:05:30]} Nb5+ {[%emt 0:05:13]} 29. Nxb5 {[%emt 0:03:03]} axb5 {[%emt 0:02:23]} 30. Rxa7 {[%emt 0:01:09]} Rcc8 {[%emt 0:01:04]} 31. Nc2 {[%emt 0:07:53]} Ra8 {[%emt 0:01:12]} 32. Rd7 {[%emt 0:00:24]} Be7 {[%emt 0:06:43]} 33. Ke3 {[%emt 0:02:21]} Ke8 {[%emt 0:00:02]} 34. Rd6 {[%emt 0:01:08]} Bxd6 {[%emt 0:00:12]} 35. exd6 {[%emt 0:00:08]} Kd7 {[%emt 0:00:42]} 36. Nd4 {[%emt 0:02:24]} Ra2 {[%emt 0:02:51]} 37. Bc3 {[%emt 0:00:36]} Ra1 {[%emt 0:00:05]} 38. Nxb5 {[%emt 0:02:57]} Rh1 {[%emt 0:02:05]} 39. h4 {[%emt 0:00:39]} Rg1 {[%emt 0:00:34]} 40. Kf2 {[%emt 0:00:00]} Rd1 {[%emt 0:00:00]} 41. Nd4 {[%emt 0:07:29]} Ra8 {[%emt 0:22:39]} 42. Ke2 {[%emt 0:17:28]} Rg1 {[%emt 0:01:41]} 43. b5 {[%emt 0:04:03]} Rxg3 {[%emt 0:05:33]} 44. Bb4 {[%emt 0:01:31]} Rg2+ {[%emt 0:00:41]} 45. Kd3 {[%emt 0:00:49]} Rxb2 {[%emt 0:00:10]} 46. c6+ {[%emt 0:00:06]} Kc8 {[%emt 0:00:13]} 47. Nxe6 {[%emt 0:03:42]} 1-0

[Event "82nd Tata Steel Challengers 2020"]
[Site "Wijk aan Zee"]
[Date "2020.01.12"]
[Round "2.2"]
[White "Smirnov, Anton"]
[Black "Keymer, Vincent"]
[Result "1/2-1/2"]
[ECO "B90"]
[WhiteElo "2604"]
[BlackElo "2527"]
[Annotator "ChessBase"]
[PlyCount "76"]
[EventDate "2020.01.11"]
[EventType "tourn"]
[EventCountry "NED"]
[SourceTitle "playchess.com"]
[Source "ChessBase"]
[SourceQuality "1"]
[TimeControl "40/6000+30:20/3000+30:900+30"]

1. e4 {[%emt 0:00:00]} c5 {[%emt 0:00:00]} 2. Nf3 {[%emt 0:00:00]} d6 {[%emt 0:00:00]} 3. d4 {[%emt 0:00:00]} cxd4 {[%emt 0:00:00]} 4. Nxd4 {[%emt 0:00:00]} Nf6 {[%emt 0:00:00]} 5. Nc3 {[%emt 0:00:01]} a6 {[%emt 0:00:00]} 6. Be3 {[%emt 0:00:07]} e5 {[%emt 0:00:00]} 7. Nf3 {[%emt 0:00:04]} Be7 {[%emt 0:00:20]} 8. Nd2 {[%emt 0:00:07]} b5 {[%emt 0:01:52]} 9. a4 {[%emt 0:00:07]} b4 {[%emt 0:00:03]} 10. Nd5 {[%emt 0:00:05]} Nxd5 {[%emt 0:00:05]} 11. exd5 {[%emt 0:00:06]} O-O {[%emt 0:05:26]} 12. Nc4 {[%emt 0:00:21]} Nd7 {[%emt 0:00:05]} 13. a5 {[%emt 0:00:05]} f5 {[%emt 0:00:05]} 14. f3 {[%emt 0:01:09]} Nf6 {[%emt 0:33:36]} 15. Be2 {[%emt 0:24:12]} Qe8 {[%emt 0:15:56]} 16. f4 {[%emt 0:06:36]} Bb7 {[%emt 0:16:46]} 17. Nb6 {[%emt 0:00:48]} Rd8 {[%emt 0:17:45]} 18. O-O {[%emt 0:03:05]} Ne4 {[%emt 0:00:54]} 19. Ra4 {[%emt 0:16:35]} exf4 {[%emt 0:03:29]} 20. Bxf4 {[%emt 0:00:37]} b3 {[%emt 0:01:59]} 21. cxb3 {[%emt 0:10:46]} Bf6 {[%emt 0:00:23]} 22. Bf3 {[%emt 0:05:38]} Nc5 {[%emt 0:01:55]} 23. Rc4 {[%emt 0:00:31]} Rf7 {[%emt 0:05:33]} 24. b4 {[%emt 0:03:29]} Nd7 {[%emt 0:00:04]} 25. Nxd7 {[%emt 0:03:41]} Rdxd7 {[%emt 0:00:55]} 26. Rc6 {[%emt 0:07:18]} g5 {[%emt 0:01:46]} 27. Bg3 {[%emt 0:03:59]} g4 {[%emt 0:00:55]} 28. Be2 {[%emt 0:00:02]} Be5 {[%emt 0:00:21]} 29. Bxe5 {[%emt 0:03:51]} Qxe5 {[%emt 0:01:27]} 30. Bxa6 {[%emt 0:00:52]} Bxa6 {[%emt 0:02:04]} 31. Rxa6 {[%emt 0:00:06]} Qxb2 {[%emt 0:00:36]} 32. Rxf5 {[%emt 0:08:17]} Rxf5 {[%emt 0:00:31]} 33. Qxg4+ {[%emt 0:00:02]} Rg7 {[%emt 0:00:07]} 34. Ra8+ {[%emt 0:00:53]} Rf8 {[%emt 0:00:04]} 35. Qe6+ {[%emt 0:03:07]} Rgf7 {[%emt 0:01:00]} 36. Rxf8+ {[%emt 0:00:07]} Kxf8 {[%emt 0:00:03]} 37. Qc8+ {[%emt 0:00:07]} Kg7 {[%emt 0:00:05]} 38. Qg4+ {[%emt 0:00:04]} Kf8 {[%emt 0:01:22]} 1/2-1/2

[Event "82nd Tata Steel Challengers 2020"]
[Site "Wijk aan Zee"]
[Date "2020.01.12"]
[Round "2.4"]
[White "Abdusattorov, Nodirbek"]
[Black "Smeets, Jan"]
[Result "0-1"]
[ECO "C42"]
[WhiteElo "2635"]
[BlackElo "2585"]
[Annotator "ChessBase"]
[PlyCount "82"]
[EventDate "2020.01.11"]
[EventType "tourn"]
[EventCountry "NED"]
[SourceTitle "playchess.com"]
[Source "ChessBase"]
[SourceQuality "1"]
[TimeControl "40/6000+30:20/3000+30:900+30"]

1. e4 {[%emt 0:00:00]} e5 {[%emt 0:00:00]} 2. Nf3 {[%emt 0:00:00]} Nf6 {[%emt 0:00:00]} 3. Nxe5 {[%emt 0:00:19]} d6 {[%emt 0:00:00]} 4. Nf3 {[%emt 0:00:10]} Nxe4 {[%emt 0:00:06]} 5. Nc3 {[%emt 0:00:17]} Nxc3 {[%emt 0:00:48]} 6. dxc3 {[%emt 0:00:08]} Be7 {[%emt 0:00:17]} 7. Be3 {[%emt 0:00:12]} O-O {[%emt 0:00:39]} 8. Qd2 {[%emt 0:00:18]} Nd7 {[%emt 0:00:39]} 9. O-O-O {[%emt 0:00:08]} c6 {[%emt 0:00:38]} 10. Kb1 {[%emt 0:08:16]} d5 {[%emt 0:01:17]} 11. h3 {[%emt 0:03:21]} Re8 {[%emt 0:05:30]} 12. c4 {[%emt 0:00:49]} Nb6 {[%emt 0:08:23]} 13. cxd5 {[%emt 0:29:40]} Nxd5 {[%emt 0:00:32]} 14. Bc4 {[%emt 0:01:33]} Be6 {[%emt 0:10:19]} 15. Bg5 {[%emt 0:17:51]} f6 {[%emt 0:26:01]} 16. Bh4 {[%emt 0:09:43]} Bf7 {[%emt 0:10:48]} 17. Rhe1 {[%emt 0:01:26]} b5 {[%emt 0:03:21]} 18. Bb3 {[%emt 0:02:21]} Qb6 {[%emt 0:10:34]} 19. Re2 {[%emt 0:04:17]} Red8 {[%emt 0:07:24]} 20. Qc1 {[%emt 0:04:27]} Bc5 {[%emt 0:02:21]} 21. Nd2 {[%emt 0:02:52]} a5 {[%emt 0:05:05]} 22. Ne4 {[%emt 0:00:27]} Bf8 {[%emt 0:04:39]} 23. c4 {[%emt 0:07:22]} a4 {[%emt 0:01:35]} 24. c5 {[%emt 0:00:28]} Qa7 {[%emt 0:00:24]} 25. Bxd5 {[%emt 0:02:10]} Bxd5 {[%emt 0:00:44]} 26. Nd6 {[%emt 0:00:59]} Bxd6 {[%emt 0:01:47]} 27. cxd6 {[%emt 0:00:02]} Rxd6 {[%emt 0:01:21]} 28. Bg3 {[%emt 0:00:42]} Rdd8 {[%emt 0:01:38]} 29. Rde1 {[%emt 0:01:39]} Qf7 {[%emt 0:04:26]} 30. a3 {[%emt 0:00:50]} Bxg2 {[%emt 0:00:26]} 31. Re7 {[%emt 0:00:38]} Qg6+ {[%emt 0:01:51]} 32. Ka1 {[%emt 0:00:06]} Re8 {[%emt 0:01:32]} 33. Qc5 {[%emt 0:02:47]} Bd5 {[%emt 0:00:32]} 34. h4 {[%emt 0:02:35]} h5 {[%emt 0:00:30]} 35. Bf4 {[%emt 0:00:20]} Rxe7 {[%emt 0:00:42]} 36. Qxe7 {[%emt 0:00:03]} Rf8 {[%emt 0:00:25]} 37. Bd2 {[%emt 0:02:25]} Rf7 {[%emt 0:00:34]} 38. Qe2 {[%emt 0:00:26]} Rd7 {[%emt 0:00:27]} 39. Bc3 {[%emt 0:00:28]} Kh7 {[%emt 0:00:31]} 40. f4 {[%emt 0:00:00]} Qf5 {[%emt 0:00:00]} 41. Bd4 {[%emt 0:02:04]} Bf7 {[%emt 0:02:45]} 0-1

[Event "82nd Tata Steel Challengers 2020"]
[Site "Wijk aan Zee"]
[Date "2020.01.17"]
[Round "6.5"]
[White "Saduakassova, Dinara"]
[Black "Keymer, Vincent"]
[Result "0-1"]
[ECO "E08"]
[WhiteElo "2519"]
[BlackElo "2527"]
[Annotator "ChessBase"]
[PlyCount "160"]
[EventDate "2020.01.11"]
[EventType "tourn"]
[EventCountry "NED"]
[SourceTitle "playchess.com"]
[Source "ChessBase"]
[SourceQuality "1"]
[TimeControl "40/6000+30:20/3000+30:900+30"]

1. d4 {[%emt 0:00:00]} d5 {[%emt 0:00:00]} 2. c4 {[%emt 0:00:00]} e6 {[%emt 0:00:00]} 3. Nf3 {[%emt 0:00:00]} Nf6 {[%emt 0:00:00]} 4. g3 {[%emt 0:00:11]} Bb4+ {[%emt 0:00:00]} 5. Bd2 {[%emt 0:00:04]} Be7 {[%emt 0:00:00]} 6. Bg2 {[%emt 0:00:03]} O-O {[%emt 0:00:00]} 7. O-O {[%emt 0:00:03]} c6 {[%emt 0:00:00]} 8. Qc2 {[%emt 0:00:26]} Nbd7 {[%emt 0:00:07]} 9. Bf4 {[%emt 0:00:05]} b6 {[%emt 0:00:13]} 10. Rd1 {[%emt 0:00:56]} Bb7 {[%emt 0:00:33]} 11. Ne5 {[%emt 0:01:54]} Nh5 {[%emt 0:00:22]} 12. Bc1 {[%emt 0:00:57]} Nhf6 {[%emt 0:06:11]} 13. Bf4 {[%emt 0:05:45]} Nh5 {[%emt 0:00:18]} 14. Bd2 {[%emt 0:06:43]} Nhf6 {[%emt 0:00:14]} 15. cxd5 {[%emt 0:00:13]} cxd5 {[%emt 0:00:09]} 16. Nc6 {[%emt 0:01:29]} Bxc6 {[%emt 0:00:04]} 17. Qxc6 {[%emt 0:00:05]} Rc8 {[%emt 0:00:03]} 18. Qb5 {[%emt 0:01:17]} Ne8 {[%emt 0:00:05]} 19. Qd3 {[%emt 0:07:12]} Nd6 {[%emt 0:00:13]} 20. Bc3 {[%emt 0:04:27]} f5 {[%emt 0:10:32]} 21. Nd2 {[%emt 0:01:32]} Ne4 {[%emt 0:03:38]} 22. Rac1 {[%emt 0:05:50]} Ndf6 {[%emt 0:09:54]} 23. f3 {[%emt 0:15:57]} Nd6 {[%emt 0:05:10]} 24. e4 {[%emt 0:10:08]} fxe4 {[%emt 0:09:44]} 25. fxe4 {[%emt 0:00:05]} Nfxe4 {[%emt 0:03:14]} 26. Nxe4 {[%emt 0:00:06]} Nxe4 {[%emt 0:00:04]} 27. Bxe4 {[%emt 0:00:03]} dxe4 {[%emt 0:00:04]} 28. Qxe4 {[%emt 0:00:04]} Qd5 {[%emt 0:00:12]} 29. Re1 {[%emt 0:00:11]} Bf6 {[%emt 0:01:47]} 30. Kg2 {[%emt 0:03:59]} Rc4 {[%emt 0:11:51]} 31. Rcd1 {[%emt 0:03:15]} Qxe4+ {[%emt 0:06:42]} 32. Rxe4 {[%emt 0:00:05]} e5 {[%emt 0:00:12]} 33. g4 {[%emt 0:25:38]} exd4 {[%emt 0:10:27]} 34. g5 {[%emt 0:01:30]} Bxg5 {[%emt 0:02:37]} 35. Rexd4 {[%emt 0:00:24]} Rxd4 {[%emt 0:01:09]} 36. Rxd4 {[%emt 0:00:05]} Bf6 {[%emt 0:01:10]} 37. Rc4 {[%emt 0:03:48]} Bxc3 {[%emt 0:04:06]} 38. Rxc3 {[%emt 0:00:04]} Rd8 {[%emt 0:00:50]} 39. Kf3 {[%emt 0:11:52]} Rd7 {[%emt 0:07:34]} 40. Rc6 {[%emt 0:00:00]} h6 {[%emt 0:00:00]} 41. Ke3 {[%emt 0:04:42]} Kh7 {[%emt 0:08:12]} 42. b3 {[%emt 0:04:36]} Re7+ {[%emt 0:09:14]} 43. Kf3 {[%emt 0:00:22]} Rf7+ {[%emt 0:00:24]} 44. Ke3 {[%emt 0:07:43]} h5 {[%emt 0:05:55]} 45. h4 {[%emt 0:04:15]} Re7+ {[%emt 0:14:25]} 46. Kf3 {[%emt 0:02:32]} Rd7 {[%emt 0:00:20]} 47. Ke3 {[%emt 0:02:34]} Rf7 {[%emt 0:01:21]} 48. Rc2 {[%emt 0:11:31]} Kh6 {[%emt 0:00:46]} 49. Rc6+ {[%emt 0:01:43]} g6 {[%emt 0:06:40]} 50. Rc8 {[%emt 0:01:02]} Rf1 {[%emt 0:05:19]} 51. Rh8+ {[%emt 0:00:45]} Kg7 {[%emt 0:00:04]} 52. Ra8 {[%emt 0:00:15]} Rf7 {[%emt 0:00:42]} 53. Rc8 {[%emt 0:01:21]} Rd7 {[%emt 0:03:22]} 54. Rc6 {[%emt 0:04:20]} Kh6 {[%emt 0:01:11]} 55. Rc8 {[%emt 0:00:12]} Rd1 {[%emt 0:03:44]} 56. Rh8+ {[%emt 0:00:05]} Kg7 {[%emt 0:00:05]} 57. Ra8 {[%emt 0:00:04]} a5 {[%emt 0:02:30]} 58. Rb8 {[%emt 0:01:03]} Rh1 {[%emt 0:01:55]} 59. Rxb6 {[%emt 0:02:01]} Rh3+ {[%emt 0:00:32]} 60. Kf2 {[%emt 0:00:00]} Rxh4 {[%emt 0:00:00]} 61. a4 {[%emt 0:05:01]} Rh3 {[%emt 0:01:26]} 62. Rb5 {[%emt 0:03:10]} Kh6 {[%emt 0:11:07]} 63. Kg2 {[%emt 0:02:13]} Rc3 {[%emt 0:00:19]} 64. b4 {[%emt 0:01:07]} Rc4 {[%emt 0:01:26]} 65. bxa5 {[%emt 0:07:34]} Rxa4 {[%emt 0:00:05]} 66. Kg3 {[%emt 0:00:12]} h4+ {[%emt 0:02:28]} 67. Kh3 {[%emt 0:01:12]} g5 {[%emt 0:00:47]} 68. Rb8 {[%emt 0:02:00]} Rxa5 {[%emt 0:00:19]} 69. Rh8+ {[%emt 0:00:04]} Kg7 {[%emt 0:00:10]} 70. Rb8 {[%emt 0:00:09]} Ra4 {[%emt 0:06:09]} 71. Rc8 {[%emt 0:00:16]} Kf7 {[%emt 0:00:55]} 72. Rb8 {[%emt 0:00:20]} Ke7 {[%emt 0:00:34]} 73. Rb6 {[%emt 0:00:29]} Ra3+ {[%emt 0:01:22]} 74. Kh2 {[%emt 0:00:17]} Kf7 {[%emt 0:00:21]} 75. Rc6 {[%emt 0:00:09]} Rf3 {[%emt 0:00:24]} 76. Rh6 {[%emt 0:00:59]} Kg7 {[%emt 0:00:21]} 77. Rh5 {[%emt 0:00:11]} Kg6 {[%emt 0:00:10]} 78. Rh8 {[%emt 0:00:03]} Kf5 {[%emt 0:00:15]} 79. Rb8 {[%emt 0:00:06]} Kg4 {[%emt 0:00:20]} 80. Rb4+ {[%emt 0:00:05]} Rf4 {[%emt 0:00:16]} 0-1

[Event "82nd Tata Steel Challengers 2020"]
[Site "Wijk aan Zee"]
[Date "2020.01.18"]
[Round "7.6"]
[White "Smirnov, Anton"]
[Black "Warmerdam, Max"]
[Result "1/2-1/2"]
[ECO "D38"]
[WhiteElo "2604"]
[BlackElo "2498"]
[Annotator "ChessBase"]
[PlyCount "65"]
[EventDate "2020.01.11"]
[EventType "tourn"]
[EventCountry "NED"]
[SourceTitle "playchess.com"]
[Source "ChessBase"]
[SourceQuality "1"]
[TimeControl "40/6000+30:20/3000+30:900+30"]

1. d4 {[%emt 0:00:00]} Nf6 {[%emt 0:00:00]} 2. c4 {[%emt 0:00:00]} e6 {[%emt 0:00:00]} 3. Nf3 {[%emt 0:00:00]} d5 {[%emt 0:00:00]} 4. Nc3 {[%emt 0:00:00]} Bb4 {[%emt 0:00:00]} 5. Qa4+ {[%emt 0:06:40]} Nc6 {[%emt 0:00:00]} 6. e3 {[%emt 0:00:55]} O-O {[%emt 0:00:21]} 7. a3 {[%emt 0:01:55]} Bxc3+ {[%emt 0:01:48]} 8. bxc3 {[%emt 0:00:18]} Ne4 {[%emt 0:06:33]} 9. Qc2 {[%emt 0:11:40]} b6 {[%emt 0:00:35]} 10. Bd3 {[%emt 0:04:43]} Ba6 {[%emt 0:00:22]} 11. cxd5 {[%emt 0:01:36]} Bxd3 {[%emt 0:00:47]} 12. Qxd3 {[%emt 0:00:02]} exd5 {[%emt 0:00:10]} 13. Nd2 {[%emt 0:04:33]} Nxd2 {[%emt 0:04:14]} 14. Bxd2 {[%emt 0:00:03]} Na5 {[%emt 0:00:21]} 15. O-O {[%emt 0:00:32]} Nc4 {[%emt 0:11:34]} 16. e4 {[%emt 0:16:22]} Nxd2 {[%emt 0:01:31]} 17. Qxd2 {[%emt 0:00:03]} dxe4 {[%emt 0:00:06]} 18. Qf4 {[%emt 0:00:27]} Qe7 {[%emt 0:14:39]} 19. Rfe1 {[%emt 0:01:38]} Rae8 {[%emt 0:09:15]} 20. f3 {[%emt 0:01:30]} f5 {[%emt 0:02:38]} 21. fxe4 {[%emt 0:01:19]} fxe4 {[%emt 0:00:07]} 22. Qe3 {[%emt 0:00:09]} Rf5 {[%emt 0:03:09]} 23. Re2 {[%emt 0:03:48]} h6 {[%emt 0:20:05]} 24. c4 {[%emt 0:09:21]} Qf6 {[%emt 0:07:08]} 25. Rae1 {[%emt 0:02:37]} Rf8 {[%emt 0:01:16]} 26. h3 {[%emt 0:00:28]} Rf4 {[%emt 0:01:11]} 27. d5 {[%emt 0:03:46]} Qe5 {[%emt 0:04:14]} 28. Rd2 {[%emt 0:07:33]} Kh8 {[%emt 0:01:40]} 29. Rde2 {[%emt 0:03:21]} R8f6 {[%emt 0:01:28]} 30. Rd2 {[%emt 0:01:38]} R6f5 {[%emt 0:07:49]} 31. Rd4 {[%emt 0:08:31]} Rf3 {[%emt 0:02:36]} 32. Qxe4 {[%emt 0:00:22]} Qg3 {[%emt 0:00:22]} 33. Qh4 {[%emt 0:00:12]} 1/2-1/2

[Event "82nd Tata Steel Challengers 2020"]
[Site "Wijk aan Zee"]
[Date "2020.01.19"]
[Round "8.1"]
[White "Van Foreest, Lucas"]
[Black "Smirnov, Anton"]
[Result "1/2-1/2"]
[ECO "E01"]
[WhiteElo "2523"]
[BlackElo "2604"]
[Annotator "ChessBase"]
[PlyCount "48"]
[EventDate "2020.01.11"]
[EventType "tourn"]
[EventCountry "NED"]
[SourceTitle "playchess.com"]
[Source "ChessBase"]
[SourceQuality "1"]
[TimeControl "40/6000+30:20/3000+30:900+30"]

1. d4 {[%emt 0:00:00]} e6 {[%emt 0:00:00]} 2. Nf3 {[%emt 0:00:34]} Nf6 {[%emt 0:00:05]} 3. c4 {[%emt 0:00:18]} d5 {[%emt 0:00:06]} 4. g3 {[%emt 0:00:07]} Bb4+ {[%emt 0:00:07]} 5. Bd2 {[%emt 0:00:28]} Bd6 {[%emt 0:00:13]} 6. Bg2 {[%emt 0:01:30]} c6 {[%emt 0:00:25]} 7. O-O {[%emt 0:01:32]} Nbd7 {[%emt 0:00:06]} 8. Nc3 {[%emt 0:08:55]} dxc4 {[%emt 0:12:13]} 9. e4 {[%emt 0:00:29]} e5 {[%emt 0:02:31]} 10. Qe2 {[%emt 0:14:13]} b5 {[%emt 0:14:29]} 11. dxe5 {[%emt 0:12:09]} Nxe5 {[%emt 0:01:12]} 12. Nxe5 {[%emt 0:00:12]} Bxe5 {[%emt 0:00:07]} 13. f4 {[%emt 0:00:03]} Bd4+ {[%emt 0:03:11]} 14. Kh1 {[%emt 0:00:05]} O-O {[%emt 0:07:35]} 15. e5 {[%emt 0:00:51]} Bg4 {[%emt 0:03:22]} 16. Qe1 {[%emt 0:00:55]} Nd5 {[%emt 0:04:29]} 17. Nxd5 {[%emt 0:17:19]} cxd5 {[%emt 0:00:26]} 18. Bb4 {[%emt 0:06:29]} Re8 {[%emt 0:06:30]} 19. Qd2 {[%emt 0:00:18]} Qb6 {[%emt 0:06:00]} 20. Ba5 {[%emt 0:02:59]} Be3 {[%emt 0:07:41]} 21. Qe1 {[%emt 0:00:05]} Qc5 {[%emt 0:00:18]} 22. Bb4 {[%emt 0:00:06]} Qb6 {[%emt 0:00:05]} 23. Ba5 {[%emt 0:00:12]} Qc5 {[%emt 0:00:16]} 24. Bb4 {[%emt 0:00:03]} Qb6 {[%emt 0:00:20]} 1/2-1/2